[Event "Limburg Open 2022"]
[Site "Maastricht"]
[Date "2022.06.03"]
[Round "1.9"]
[White "Roebers, Eline"]
[Black "Van Cappellen, Jonas"]
[Result "1/2-1/2"]
[ECO "B31"]
[WhiteElo "2378"]
[BlackElo "2244"]
[PlyCount "50"]
[EventDate "2022.06.03"]
[EventType "swiss"]
[EventRounds "7"]
[EventCountry "NED"]
[SourceTitle "Limburg Open"]
[Source "Limburg Open"]
[SourceDate "2022.06.06"]
[SourceVersion "7"]
[SourceVersionDate "2022.06.06"]
[SourceQuality "1"]
[TimeControl "7200+15"]

1. e4 {[%emt 0:00:02]} c5 {[%emt 0:00:06]} 2. Nf3 {[%emt 0:00:03]} Nc6 {
[%emt 0:00:08]} 3. Bb5 {[%emt 0:02:33]} g6 {[%emt 0:00:09]} 4. O-O {[%emt 0:00:
04]} Bg7 {[%emt 0:00:07]} 5. c3 {[%emt 0:01:35]} Nf6 {[%emt 0:00:21]} 6. Re1 {
[%emt 0:00:26]} O-O {[%emt 0:00:12]} 7. d4 {[%emt 0:02:45]} d5 {[%emt 0:00:30]}
8. e5 {[%emt 0:01:24]} Ne4 {[%emt 0:00:08]} 9. h3 {[%emt 0:11:34]} Qb6 {
[%emt 0:00:37]} 10. Na3 {[%emt 0:06:51]} cxd4 {[%emt 0:03:19]} 11. cxd4 {
[%emt 0:06:48]} Bf5 {[%emt 0:03:00]} 12. Bd3 {[%emt 0:17:22]} Rfd8 {[%emt 0:08:
10]} 13. Be3 {[%emt 0:14:30]} Qxb2 {[%emt 0:06:53]} 14. Nb5 {[%emt 0:00:28]}
Nd2 {[%emt 0:15:47]} 15. Bxf5 {[%emt 0:25:28]} Nxf3+ {[%emt 0:00:25]} 16. Qxf3
{[%emt 0:03:46]} Qxb5 {[%emt 0:00:08]} 17. Bc2 {[%emt 0:00:55]} Qb2 {[%emt 0:
13:54]} 18. Qd1 {[%emt 0:01:38]} Rac8 {[%emt 0:01:13]} 19. Rb1 {[%emt 0:01:58]}
Qxa2 {[%emt 0:02:37]} 20. Rxb7 {[%emt 0:04:34]} Nxe5 {[%emt 0:20:00]} 21. dxe5
{[%emt 0:08:21]} Qxc2 {[%emt 0:08:50]} 22. Rxe7 {[%emt 0:01:49]} Qxd1 {[%emt 0:
12:11]} 23. Rxd1 {[%emt 0:00:03]} Kf8 {[%emt 0:00:42]} 24. Rxa7 {[%emt 0:01:13]
} Bxe5 {[%emt 0:01:32]} 25. Ra5 {[%emt 0:00:44]} Bf6 {[%emt 0:05:47]} 1/2-1/2

[Event "Limburg Open 2022"]
[Site "Maastricht"]
[Date "2022.06.03"]
[Round "1.10"]
[White "Bomans, Arno"]
[Black "Ondersteijn, Niels"]
[Result "1-0"]
[ECO "A45"]
[WhiteElo "2241"]
[BlackElo "2376"]
[PlyCount "71"]
[EventDate "2022.06.03"]
[EventType "swiss"]
[EventRounds "7"]
[EventCountry "NED"]
[SourceTitle "Limburg Open"]
[Source "Limburg Open"]
[SourceDate "2022.06.06"]
[SourceVersion "7"]
[SourceVersionDate "2022.06.06"]
[SourceQuality "1"]
[TimeControl "7200+15"]

1. d4 {[%emt 0:00:03]} Nf6 {[%emt 0:00:06]} 2. Bg5 {[%emt 0:00:09]} c5 {
[%emt 0:00:21]} 3. Bxf6 {[%emt 0:00:18]} gxf6 {[%emt 0:00:08]} 4. d5 {[%emt 0:
00:05]} Qb6 {[%emt 0:00:45]} 5. Qc1 {[%emt 0:00:48]} f5 {[%emt 0:00:52]} 6. c4
{[%emt 0:02:02]} Bg7 {[%emt 0:00:27]} 7. Nc3 {[%emt 0:00:10]} d6 {[%emt 0:02:
48]} 8. e3 {[%emt 0:00:31]} Qa5 {[%emt 0:01:54]} 9. Nf3 {[%emt 0:02:39]} a6 {
[%emt 0:09:16]} 10. Be2 {[%emt 0:06:56]} Nd7 {[%emt 0:09:10]} 11. O-O {[%emt 0:
00:56]} Nf6 {[%emt 0:03:08]} 12. Qc2 {[%emt 0:00:34]} Bd7 {[%emt 0:12:11]} 13.
Nh4 {[%emt 0:08:34]} b5 {[%emt 0:09:13]} 14. Nxf5 {[%emt 0:03:18]} Bxf5 {
[%emt 0:00:22]} 15. Qxf5 {[%emt 0:00:06]} bxc4 {[%emt 0:05:08]} 16. Bxc4 {
[%emt 0:01:54]} Rb8 {[%emt 0:06:48]} 17. Rac1 {[%emt 0:08:55]} h5 {[%emt 0:02:
41]} 18. Rc2 {[%emt 0:15:16]} h4 {[%emt 0:05:37]} 19. Be2 {[%emt 0:00:27]} Nd7
{[%emt 0:06:27]} 20. Ne4 {[%emt 0:16:49]} Bxb2 {[%emt 0:17:25]} 21. Ng5 {
[%emt 0:08:31]} Bf6 {[%emt 0:05:36]} 22. Nxf7 {[%emt 0:02:12]} Kxf7 {[%emt 0:
00:11]} 23. Qxd7 {[%emt 0:00:39]} Rb4 {[%emt 0:00:45]} 24. Qf5 {[%emt 0:02:44]}
Qa4 {[%emt 0:01:37]} 25. a3 {[%emt 0:04:55]} Re4 {[%emt 0:02:56]} 26. Bh5+ {
[%emt 0:02:12]} Kf8 {[%emt 0:00:51]} 27. Rb2 {[%emt 0:00:25]} Rh6 {[%emt 0:00:
58]} 28. Bd1 {[%emt 0:10:54]} Qc4 {[%emt 0:03:56]} 29. Be2 {[%emt 0:00:46]} Qa4
{[%emt 0:00:12]} 30. Rb8+ {[%emt 0:00:17]} Kf7 {[%emt 0:02:15]} 31. Qc8 {
[%emt 0:00:54]} Bg7 {[%emt 0:00:56]} 32. Bd1 {[%emt 0:03:11]} Qc4 {[%emt 0:00:
45]} 33. Qf5+ {[%emt 0:03:11]} Bf6 {[%emt 0:01:38]} 34. Bb3 {[%emt 0:00:08]}
Qd3 {[%emt 0:01:48]} 35. Rd1 {[%emt 0:00:26]} Rxe3 {[%emt 0:00:16]} 36. Qxd3 {
[%emt 0:00:23]} 1-0

[Event "Limburg Open 2022"]
[Site "Maastricht"]
[Date "2022.06.03"]
[Round "1.11"]
[White "Kopylov, Michael"]
[Black "Grutter, Tim"]
[Result "0-1"]
[ECO "E62"]
[WhiteElo "2372"]
[BlackElo "2234"]
[PlyCount "114"]
[EventDate "2022.06.03"]
[EventType "swiss"]
[EventRounds "7"]
[EventCountry "NED"]
[SourceTitle "Limburg Open"]
[Source "Limburg Open"]
[SourceDate "2022.06.06"]
[SourceVersion "7"]
[SourceVersionDate "2022.06.06"]
[SourceQuality "1"]
[TimeControl "7200+15"]

1. d4 {[%emt 0:00:04]} Nf6 {[%emt 0:00:07]} 2. c4 {[%emt 0:00:15]} g6 {[%emt 0:
00:06]} 3. g3 {[%emt 0:00:20]} Bg7 {[%emt 0:00:06]} 4. Bg2 {[%emt 0:00:09]} O-O
{[%emt 0:00:07]} 5. Nf3 {[%emt 0:00:12]} d6 {[%emt 0:00:12]} 6. O-O {[%emt 0:
00:17]} Nc6 {[%emt 0:00:07]} 7. Nc3 {[%emt 0:00:22]} e5 {[%emt 0:00:26]} 8. d5
{[%emt 0:01:06]} Ne7 {[%emt 0:00:09]} 9. c5 {[%emt 0:00:18]} Ne8 {[%emt 0:02:
43]} 10. cxd6 {[%emt 0:00:28]} Nxd6 {[%emt 0:00:12]} 11. e4 {[%emt 0:02:02]} c6
{[%emt 0:04:08]} 12. Re1 {[%emt 0:02:56]} h6 {[%emt 0:10:10]} 13. Qb3 {[%emt 0:
10:26]} b6 {[%emt 0:13:00]} 14. dxc6 {[%emt 0:11:56]} Nxc6 {[%emt 0:01:26]} 15.
Rd1 {[%emt 0:00:17]} Qc7 {[%emt 0:16:31]} 16. Nd5 {[%emt 0:01:59]} Qb8 {
[%emt 0:03:42]} 17. Be3 {[%emt 0:00:32]} Be6 {[%emt 0:08:53]} 18. Rac1 {
[%emt 0:04:36]} Rc8 {[%emt 0:12:52]} 19. Qa4 {[%emt 0:03:34]} b5 {[%emt 0:11:
39]} 20. Qa6 {[%emt 0:26:13]} Nc4 {[%emt 0:03:01]} 21. Bc5 {[%emt 0:02:45]}
Bxd5 {[%emt 0:03:29]} 22. exd5 {[%emt 0:01:58]} Nd8 {[%emt 0:02:32]} 23. b4 {
[%emt 0:03:28]} Qb7 {[%emt 0:01:58]} 24. Qxb7 {[%emt 0:02:00]} Nxb7 {[%emt 0:
00:01]} 25. d6 {[%emt 0:02:51]} Ncxd6 {[%emt 0:08:01]} 26. Bxd6 {[%emt 0:05:50]
} Rxc1 {[%emt 0:01:02]} 27. Rxc1 {[%emt 0:00:06]} Nxd6 {[%emt 0:00:03]} 28.
Nxe5 {[%emt 0:01:07]} Re8 {[%emt 0:01:50]} 29. Nc6 {[%emt 0:00:50]} Re2 {
[%emt 0:02:34]} 30. Rd1 {[%emt 0:06:14]} Bf8 {[%emt 0:01:12]} 31. Bd5 {[%emt 0:
02:41]} Ne4 {[%emt 0:08:25]} 32. Rd3 {[%emt 0:08:37]} Nxf2 {[%emt 0:01:42]} 33.
Rf3 {[%emt 0:00:10]} Nh3+ {[%emt 0:01:45]} 34. Kf1 {[%emt 0:00:55]} Rd2 {
[%emt 0:00:19]} 35. Bxf7+ {[%emt 0:02:21]} Kg7 {[%emt 0:00:05]} 36. Bb3 {
[%emt 0:00:50]} Ng5 {[%emt 0:00:14]} 37. Rf2 {[%emt 0:01:00]} Rd7 {[%emt 0:00:
58]} 38. Rf4 {[%emt 0:04:16]} Rc7 {[%emt 0:01:23]} 39. Nd4 {[%emt 0:06:55]} Bd6
{[%emt 0:00:22]} 40. Rg4 {[%emt 0:01:23]} Rb7 {[%emt 0:00:46]} 41. h4 {[%emt 0:
00:23]} Nf7 {[%emt 0:00:20]} 42. Nf5+ {[%emt 0:03:48]} Kf6 {[%emt 0:00:08]} 43.
Bxf7 {[%emt 0:00:22]} Kxf5 {[%emt 0:00:34]} 44. Bd5 {[%emt 0:01:06]} Kxg4 {
[%emt 0:00:29]} 45. Bxb7 {[%emt 0:00:01]} Kxg3 {[%emt 0:00:24]} 46. h5 {
[%emt 0:00:20]} g5 {[%emt 0:00:38]} 47. Bc6 {[%emt 0:00:40]} Kh4 {[%emt 0:00:
20]} 48. Bxb5 {[%emt 0:00:44]} Kxh5 {[%emt 0:00:05]} 49. Be2+ {[%emt 0:00:20]}
Kh4 {[%emt 0:00:08]} 50. b5 {[%emt 0:00:21]} h5 {[%emt 0:00:28]} 51. Kg2 {
[%emt 0:00:05]} g4 {[%emt 0:00:09]} 52. a4 {[%emt 0:00:07]} Bc7 {[%emt 0:00:03]
} 53. Bc4 {[%emt 0:00:26]} Kg5 {[%emt 0:00:14]} 54. Be6 {[%emt 0:00:07]} h4 {
[%emt 0:00:09]} 55. Bd7 {[%emt 0:00:06]} h3+ {[%emt 0:00:10]} 56. Kf2 {[%emt 0:
00:36]} g3+ {[%emt 0:00:20]} 57. Kf3 {[%emt 0:00:10]} g2 {[%emt 0:00:08]} 0-1

[Event "Limburg Open 2022"]
[Site "Maastricht"]
[Date "2022.06.03"]
[Round "1.12"]
[White "Bentel, Robin"]
[Black "De Rover, Yong Hoon"]
[Result "0-1"]
[ECO "E15"]
[WhiteElo "2225"]
[BlackElo "2359"]
[PlyCount "60"]
[EventDate "2022.06.03"]
[EventType "swiss"]
[EventRounds "7"]
[EventCountry "NED"]
[SourceTitle "Limburg Open"]
[Source "Limburg Open"]
[SourceDate "2022.06.06"]
[SourceVersion "7"]
[SourceVersionDate "2022.06.06"]
[SourceQuality "1"]
[TimeControl "7200+15"]

1. d4 {[%emt 0:00:06]} Nf6 {[%emt 0:00:47]} 2. c4 {[%emt 0:00:18]} e6 {[%emt 0:
00:43]} 3. Nf3 {[%emt 0:00:27]} b6 {[%emt 0:00:54]} 4. g3 {[%emt 0:00:30]} Ba6
{[%emt 0:00:46]} 5. b3 {[%emt 0:00:36]} Bb4+ {[%emt 0:00:30]} 6. Bd2 {[%emt 0:
00:38]} Be7 {[%emt 0:00:08]} 7. Bg2 {[%emt 0:01:16]} c6 {[%emt 0:00:23]} 8. Nc3
{[%emt 0:04:07]} d5 {[%emt 0:02:36]} 9. O-O {[%emt 0:04:01]} O-O {[%emt 0:02:
11]} 10. Bf4 {[%emt 0:09:48]} Nbd7 {[%emt 0:03:54]} 11. Nd2 {[%emt 0:08:06]}
Nh5 {[%emt 0:12:27]} 12. a3 {[%emt 0:17:55]} Rc8 {[%emt 0:13:40]} 13. b4 {
[%emt 0:05:11]} Nxf4 {[%emt 0:14:03]} 14. gxf4 {[%emt 0:00:07]} dxc4 {[%emt 0:
02:04]} 15. Qa4 {[%emt 0:14:50]} Nb8 {[%emt 0:03:01]} 16. e3 {[%emt 0:00:27]}
Qc7 {[%emt 0:11:11]} 17. Nf3 {[%emt 0:16:18]} Rcd8 {[%emt 0:16:31]} 18. Ne5 {
[%emt 0:04:17]} b5 {[%emt 0:02:17]} 19. Qc2 {[%emt 0:00:21]} f6 {[%emt 0:00:40]
} 20. Nf3 {[%emt 0:02:17]} Bc8 {[%emt 0:01:28]} 21. Rfb1 {[%emt 0:09:11]} Nd7 {
[%emt 0:06:45]} 22. a4 {[%emt 0:08:05]} a6 {[%emt 0:00:27]} 23. d5 {[%emt 0:01:
05]} exd5 {[%emt 0:06:42]} 24. Nd4 {[%emt 0:01:25]} Nb6 {[%emt 0:01:15]} 25. a5
{[%emt 0:05:45]} Na8 {[%emt 0:00:24]} 26. Rd1 {[%emt 0:05:19]} Kh8 {[%emt 0:01:
40]} 27. Nxc6 {[%emt 0:02:11]} Qxc6 {[%emt 0:00:40]} 28. Rxd5 {[%emt 0:01:11]}
Bb7 {[%emt 0:06:22]} 29. Rg5 {[%emt 0:01:01]} Qc8 {[%emt 0:01:30]} 30. Rh5 {
[%emt 0:00:23]} Rd3 {[%emt 0:00:28]} 0-1

[Event "Limburg Open 2022"]
[Site "Maastricht"]
[Date "2022.06.03"]
[Round "1.13"]
[White "Thinius, Marco"]
[Black "Noiroux, Kevin"]
[Result "0-1"]
[ECO "A10"]
[WhiteElo "2358"]
[BlackElo "2210"]
[PlyCount "80"]
[EventDate "2022.06.03"]
[EventType "swiss"]
[EventRounds "7"]
[EventCountry "NED"]
[SourceTitle "Limburg Open"]
[Source "Limburg Open"]
[SourceDate "2022.06.06"]
[SourceVersion "7"]
[SourceVersionDate "2022.06.06"]
[SourceQuality "1"]
[TimeControl "7200+15"]

1. c4 {[%emt 0:00:08]} f5 {[%emt 0:00:05]} 2. g3 {[%emt 0:00:35]} Nf6 {[%emt 0:
00:06]} 3. Bg2 {[%emt 0:00:22]} g6 {[%emt 0:00:06]} 4. Nc3 {[%emt 0:00:13]} Bg7
{[%emt 0:00:08]} 5. d3 {[%emt 0:00:24]} d6 {[%emt 0:00:21]} 6. e4 {[%emt 0:00:
12]} fxe4 {[%emt 0:00:08]} 7. dxe4 {[%emt 0:00:08]} O-O {[%emt 0:00:43]} 8.
Nge2 {[%emt 0:00:36]} c5 {[%emt 0:00:05]} 9. O-O {[%emt 0:00:51]} Nc6 {[%emt 0:
00:16]} 10. h3 {[%emt 0:04:01]} e5 {[%emt 0:01:31]} 11. f4 {[%emt 0:04:42]} Be6
{[%emt 0:19:55]} 12. b3 {[%emt 0:00:21]} Qd7 {[%emt 0:09:08]} 13. Kh2 {[%emt 0:
02:18]} exf4 {[%emt 0:01:14]} 14. Bxf4 {[%emt 0:02:14]} Ne5 {[%emt 0:36:27]}
15. Qd2 {[%emt 0:03:33]} a6 {[%emt 0:10:37]} 16. Rad1 {[%emt 0:02:51]} Rad8 {
[%emt 0:02:29]} 17. Bg5 {[%emt 0:16:52]} b5 {[%emt 0:21:11]} 18. cxb5 {[%emt 0:
05:40]} axb5 {[%emt 0:00:06]} 19. Nf4 {[%emt 0:00:21]} c4 {[%emt 0:08:29]} 20.
Nxe6 {[%emt 0:18:14]} Qxe6 {[%emt 0:00:06]} 21. Nxb5 {[%emt 0:00:12]} cxb3 {
[%emt 0:06:41]} 22. Nd4 {[%emt 0:03:00]} Qe8 {[%emt 0:00:07]} 23. axb3 {
[%emt 0:00:50]} Rd7 {[%emt 0:00:05]} 24. b4 {[%emt 0:06:50]} h6 {[%emt 0:00:22]
} 25. Qa2+ {[%emt 0:22:00]} Kh7 {[%emt 0:00:14]} 26. Bc1 {[%emt 0:01:24]} Re7 {
[%emt 0:03:25]} 27. Rfe1 {[%emt 0:05:36]} d5 {[%emt 0:02:00]} 28. b5 {[%emt 0:
05:44]} Nc4 {[%emt 0:00:02]} 29. Nc6 {[%emt 0:01:16]} Rxe4 {[%emt 0:00:39]} 30.
Bxe4 {[%emt 0:07:30]} Nxe4 {[%emt 0:00:01]} 31. Rxd5 {[%emt 0:01:57]} Qe6 {
[%emt 0:00:52]} 32. Rd2 {[%emt 0:06:19]} Ncxd2 {[%emt 0:00:11]} 33. Qxd2 {
[%emt 0:00:53]} Nxd2 {[%emt 0:00:23]} 34. Rxe6 {[%emt 0:00:02]} Rf2+ {[%emt 0:
00:16]} 35. Kg1 {[%emt 0:00:10]} Rf1+ {[%emt 0:00:04]} 36. Kg2 {[%emt 0:00:02]}
Rxc1 {[%emt 0:00:07]} 37. b6 {[%emt 0:00:25]} Rb1 {[%emt 0:00:01]} 38. Nd8 {
[%emt 0:00:23]} Bd4 {[%emt 0:00:25]} 39. Re7+ {[%emt 0:00:33]} Kg8 {[%emt 0:00:
01]} 40. Re8+ {[%emt 0:00:10]} Kg7 {[%emt 0:00:14]} 0-1

[Event "Limburg Open 2022"]
[Site "Maastricht"]
[Date "2022.06.03"]
[Round "1.14"]
[White "Sucikova, Svetlana"]
[Black "Lenaerts, Lennert"]
[Result "0-1"]
[ECO "A13"]
[WhiteElo "2209"]
[BlackElo "2353"]
[PlyCount "92"]
[EventDate "2022.06.03"]
[EventType "swiss"]
[EventRounds "7"]
[EventCountry "NED"]
[SourceTitle "Limburg Open"]
[Source "Limburg Open"]
[SourceDate "2022.06.06"]
[SourceVersion "7"]
[SourceVersionDate "2022.06.06"]
[SourceQuality "1"]
[TimeControl "7200+15"]

1. e3 {[%emt 0:00:58]} d5 {[%emt 0:00:28]} 2. Nf3 {[%emt 0:01:36]} Nf6 {
[%emt 0:00:43]} 3. c4 {[%emt 0:00:59]} e6 {[%emt 0:00:59]} 4. b3 {[%emt 0:01:
07]} Bd6 {[%emt 0:06:01]} 5. Bb2 {[%emt 0:01:40]} b6 {[%emt 0:00:53]} 6. Be2 {
[%emt 0:03:45]} Nbd7 {[%emt 0:01:51]} 7. O-O {[%emt 0:01:04]} O-O {[%emt 0:00:
28]} 8. d4 {[%emt 0:01:30]} Bb7 {[%emt 0:03:15]} 9. Nbd2 {[%emt 0:01:48]} Qe7 {
[%emt 0:03:10]} 10. Rc1 {[%emt 0:02:25]} Ne4 {[%emt 0:03:04]} 11. Ne5 {[%emt 0:
10:21]} Nxd2 {[%emt 0:14:04]} 12. Qxd2 {[%emt 0:00:52]} Nxe5 {[%emt 0:03:04]}
13. dxe5 {[%emt 0:00:14]} Bb4 {[%emt 0:00:06]} 14. Qc2 {[%emt 0:05:13]} dxc4 {
[%emt 0:00:55]} 15. Qxc4 {[%emt 0:00:32]} Bc5 {[%emt 0:00:57]} 16. Qg4 {
[%emt 0:15:31]} Rfd8 {[%emt 0:04:05]} 17. Rc2 {[%emt 0:00:40]} Rac8 {[%emt 0:
06:39]} 18. Rfc1 {[%emt 0:02:04]} a6 {[%emt 0:01:02]} 19. h3 {[%emt 0:07:13]}
Rd7 {[%emt 0:04:34]} 20. Qf4 {[%emt 0:11:36]} Rcd8 {[%emt 0:07:11]} 21. Bh5 {
[%emt 0:01:09]} h6 {[%emt 0:07:57]} 22. Kh2 {[%emt 0:05:56]} a5 {[%emt 0:01:33]
} 23. Bf3 {[%emt 0:03:47]} Bxf3 {[%emt 0:02:50]} 24. Qxf3 {[%emt 0:01:19]} Rd2
{[%emt 0:02:29]} 25. Bc3 {[%emt 0:02:14]} Rxc2 {[%emt 0:02:29]} 26. Rxc2 {
[%emt 0:00:04]} Rd5 {[%emt 0:00:35]} 27. Qe2 {[%emt 0:02:19]} Qd7 {[%emt 0:02:
56]} 28. Qc4 {[%emt 0:12:40]} b5 {[%emt 0:05:55]} 29. Qe4 {[%emt 0:01:43]} Bb6
{[%emt 0:02:12]} 30. Bd4 {[%emt 0:06:43]} c5 {[%emt 0:08:50]} 31. Bc3 {[%emt 0:
00:19]} a4 {[%emt 0:02:27]} 32. bxa4 {[%emt 0:00:56]} b4 {[%emt 0:00:13]} 33.
Bb2 {[%emt 0:03:36]} Qxa4 {[%emt 0:00:33]} 34. Qc4 {[%emt 0:00:07]} Qd7 {
[%emt 0:04:39]} 35. f4 {[%emt 0:01:34]} Rd2 {[%emt 0:03:04]} 36. Rxd2 {[%emt 0:
05:42]} Qxd2 {[%emt 0:00:03]} 37. Bc1 {[%emt 0:00:06]} Qd1 {[%emt 0:06:20]} 38.
Bb2 {[%emt 0:01:00]} Qd2 {[%emt 0:01:23]} 39. Bc1 {[%emt 0:00:08]} Qe1 {
[%emt 0:00:03]} 40. Qc2 {[%emt 0:04:27]} Qf1 {[%emt 0:00:08]} 41. a3 {[%emt 0:
02:28]} bxa3 {[%emt 0:02:23]} 42. Bxa3 {[%emt 0:00:05]} c4 {[%emt 0:00:02]} 43.
Bc1 {[%emt 0:00:26]} Ba5 {[%emt 0:00:18]} 44. e4 {[%emt 0:00:45]} Bb6 {[%emt 0:
01:08]} 45. Qd2 {[%emt 0:00:28]} Bf2 {[%emt 0:00:12]} 46. Qd8+ {[%emt 0:00:20]}
Kh7 {[%emt 0:00:02]} 0-1

[Event "Limburg Open 2022"]
[Site "Maastricht"]
[Date "2022.06.04"]
[Round "2.1"]
[White "Elgersma, Onno"]
[Black "Warmerdam, Max"]
[Result "0-1"]
[ECO "B52"]
[WhiteElo "2312"]
[BlackElo "2613"]
[PlyCount "130"]
[EventDate "2022.06.03"]
[EventType "swiss"]
[EventRounds "7"]
[EventCountry "NED"]
[SourceTitle "Limburg Open"]
[Source "Limburg Open"]
[SourceDate "2022.06.06"]
[SourceVersion "7"]
[SourceVersionDate "2022.06.06"]
[SourceQuality "1"]
[TimeControl "7200+15"]

1. e4 {[%emt 0:00:04]} c5 {[%emt 0:00:22]} 2. Nf3 {[%emt 0:00:06]} d6 {[%emt 0:
00:31]} 3. Bb5+ {[%emt 0:00:21]} Bd7 {[%emt 0:00:57]} 4. Bxd7+ {[%emt 0:03:45]}
Nxd7 {[%emt 0:00:45]} 5. c4 {[%emt 0:02:25]} Ngf6 {[%emt 0:00:45]} 6. Nc3 {
[%emt 0:00:12]} Ne5 {[%emt 0:00:29]} 7. O-O {[%emt 0:10:19]} Nfd7 {[%emt 0:03:
49]} 8. Nxe5 {[%emt 0:08:04]} dxe5 {[%emt 0:00:43]} 9. d3 {[%emt 0:00:30]} e6 {
[%emt 0:01:12]} 10. Qg4 {[%emt 0:03:18]} h5 {[%emt 0:09:52]} 11. Qe2 {[%emt 0:
07:59]} Bd6 {[%emt 0:12:15]} 12. a3 {[%emt 0:08:20]} Nb8 {[%emt 0:23:55]} 13.
Rb1 {[%emt 0:21:21]} Nc6 {[%emt 0:00:11]} 14. Be3 {[%emt 0:00:17]} b6 {[%emt 0:
02:56]} 15. Na2 {[%emt 0:02:41]} Qe7 {[%emt 0:04:14]} 16. Qd2 {[%emt 0:07:20]}
O-O {[%emt 0:26:58]} 17. b4 {[%emt 0:02:56]} g6 {[%emt 0:17:26]} 18. b5 {
[%emt 0:13:53]} Nd4 {[%emt 0:01:38]} 19. Bxd4 {[%emt 0:00:42]} exd4 {[%emt 0:
00:04]} 20. f4 {[%emt 0:01:44]} a6 {[%emt 0:00:04]} 21. Qc1 {[%emt 0:12:33]}
axb5 {[%emt 0:00:16]} 22. Rxb5 {[%emt 0:00:05]} Bc7 {[%emt 0:00:33]} 23. Rb3 {
[%emt 0:01:53]} f5 {[%emt 0:00:33]} 24. Qe1 {[%emt 0:02:05]} e5 {[%emt 0:00:45]
} 25. exf5 {[%emt 0:01:59]} Rxf5 {[%emt 0:00:51]} 26. Rb1 {[%emt 0:07:23]} Rxa3
{[%emt 0:01:37]} 27. Nc1 {[%emt 0:00:03]} e4 {[%emt 0:00:34]} 28. g3 {[%emt 0:
01:18]} e3 {[%emt 0:00:36]} 29. Qe2 {[%emt 0:00:23]} Qf7 {[%emt 0:01:29]} 30.
h4 {[%emt 0:00:48]} Qd7 {[%emt 0:00:47]} 31. Rb3 {[%emt 0:01:20]} Ra1 {[%emt 0:
01:14]} 32. Rb2 {[%emt 0:00:51]} Rf8 {[%emt 0:01:35]} 33. Ra2 {[%emt 0:01:07]}
Rxa2 {[%emt 0:02:27]} 34. Qxa2 {[%emt 0:00:01]} Qc6 {[%emt 0:01:36]} 35. Qe2 {
[%emt 0:00:33]} Kg7 {[%emt 0:00:10]} 36. Nb3 {[%emt 0:00:16]} Ra8 {[%emt 0:02:
19]} 37. Na1 {[%emt 0:00:16]} Bd6 {[%emt 0:01:24]} 38. Nc2 {[%emt 0:00:14]} Ra2
{[%emt 0:00:17]} 39. Ra1 {[%emt 0:00:02]} Rxa1+ {[%emt 0:00:08]} 40. Nxa1 {
[%emt 0:00:01]} b5 {[%emt 0:00:03]} 41. cxb5 {[%emt 0:00:16]} Qxb5 {[%emt 0:00:
02]} 42. Nc2 {[%emt 0:00:14]} Qb2 {[%emt 0:00:03]} 43. Kf1 {[%emt 0:00:17]} Bc7
{[%emt 0:00:35]} 44. Ne1 {[%emt 0:00:38]} Qxe2+ {[%emt 0:01:25]} 45. Kxe2 {
[%emt 0:00:02]} Kf6 {[%emt 0:00:06]} 46. Nc2 {[%emt 0:00:23]} Kf5 {[%emt 0:00:
31]} 47. Kf3 {[%emt 0:00:01]} Ba5 {[%emt 0:00:05]} 48. Na3 {[%emt 0:00:01]} Be1
{[%emt 0:00:03]} 49. Nc4 {[%emt 0:00:13]} e2 {[%emt 0:00:14]} 50. Nd6+ {
[%emt 0:00:23]} Ke6 {[%emt 0:00:01]} 51. Ne4 {[%emt 0:00:06]} Bxg3 {[%emt 0:00:
11]} 52. Kxe2 {[%emt 0:00:04]} Bxh4 {[%emt 0:00:10]} 53. Nxc5+ {[%emt 0:00:13]}
Kf5 {[%emt 0:00:08]} 54. Kf3 {[%emt 0:00:01]} Be7 {[%emt 0:00:27]} 55. Nb3 {
[%emt 0:00:07]} Bf6 {[%emt 0:00:12]} 56. Nc1 {[%emt 0:00:10]} Bg7 {[%emt 0:01:
16]} 57. Ne2 {[%emt 0:00:17]} h4 {[%emt 0:00:02]} 58. Ng1 {[%emt 0:00:22]} Bf8
{[%emt 0:00:04]} 59. Ne2 {[%emt 0:00:12]} Bc5 {[%emt 0:00:01]} 60. Ng1 {
[%emt 0:00:17]} Bb4 {[%emt 0:00:03]} 61. Ne2 {[%emt 0:01:25]} Bc3 {[%emt 0:00:
01]} 62. Ng1 {[%emt 0:00:14]} Bd2 {[%emt 0:00:01]} 63. Ne2 {[%emt 0:00:13]} Be3
{[%emt 0:00:02]} 64. Kg2 {[%emt 0:00:09]} Kg4 {[%emt 0:00:01]} 65. Kh2 {
[%emt 0:00:27]} Bxf4+ {[%emt 0:00:01]} 0-1

[Event "Limburg Open 2022"]
[Site "Maastricht"]
[Date "2022.06.04"]
[Round "2.2"]
[White "Donchenko, Alexander"]
[Black "Pauly, Carlo"]
[Result "1/2-1/2"]
[ECO "E63"]
[WhiteElo "2602"]
[BlackElo "2305"]
[PlyCount "99"]
[EventDate "2022.06.03"]
[EventType "swiss"]
[EventRounds "7"]
[EventCountry "NED"]
[SourceTitle "Limburg Open"]
[Source "Limburg Open"]
[SourceDate "2022.06.06"]
[SourceVersion "7"]
[SourceVersionDate "2022.06.06"]
[SourceQuality "1"]
[TimeControl "7200+15"]

1. d4 {[%emt 0:00:02]} Nf6 {[%emt 0:00:45]} 2. c4 {[%emt 0:00:08]} g6 {[%emt 0:
00:08]} 3. g3 {[%emt 0:00:22]} Bg7 {[%emt 0:00:12]} 4. Bg2 {[%emt 0:00:07]} O-O
{[%emt 0:00:13]} 5. Nc3 {[%emt 0:00:07]} d6 {[%emt 0:00:13]} 6. Nf3 {[%emt 0:
00:07]} Nc6 {[%emt 0:00:13]} 7. O-O {[%emt 0:00:23]} a6 {[%emt 0:00:11]} 8. b3
{[%emt 0:00:22]} Rb8 {[%emt 0:00:42]} 9. d5 {[%emt 0:00:15]} Na5 {[%emt 0:01:
02]} 10. Bg5 {[%emt 0:00:13]} h6 {[%emt 0:02:02]} 11. Bd2 {[%emt 0:00:24]} c5 {
[%emt 0:00:30]} 12. dxc6 {[%emt 0:00:12]} Nxc6 {[%emt 0:00:24]} 13. Rc1 {
[%emt 0:00:20]} Kh7 {[%emt 0:06:01]} 14. h3 {[%emt 0:07:17]} Bd7 {[%emt 0:05:
54]} 15. Nd5 {[%emt 0:09:30]} Nxd5 {[%emt 0:12:46]} 16. cxd5 {[%emt 0:00:09]}
Nd4 {[%emt 0:01:15]} 17. Nxd4 {[%emt 0:23:21]} Bxd4 {[%emt 0:01:10]} 18. Bxh6 {
[%emt 0:03:04]} Bxf2+ {[%emt 0:00:26]} 19. Rxf2 {[%emt 0:00:06]} Kxh6 {[%emt 0:
00:05]} 20. Qd4 {[%emt 0:00:12]} f6 {[%emt 0:18:33]} 21. Rcf1 {[%emt 0:05:12]}
Kg7 {[%emt 0:04:23]} 22. g4 {[%emt 0:04:00]} Qc7 {[%emt 0:02:05]} 23. g5 {
[%emt 0:22:19]} Qc5 {[%emt 0:02:14]} 24. Qxc5 {[%emt 0:06:32]} dxc5 {[%emt 0:
00:06]} 25. d6 {[%emt 0:00:04]} f5 {[%emt 0:12:37]} 26. dxe7 {[%emt 0:00:16]}
Rfe8 {[%emt 0:00:25]} 27. Rd1 {[%emt 0:00:44]} Rxe7 {[%emt 0:00:37]} 28. Rd6 {
[%emt 0:00:14]} b5 {[%emt 0:14:06]} 29. Rxa6 {[%emt 0:02:25]} c4 {[%emt 0:00:
21]} 30. Rf3 {[%emt 0:10:08]} Bc8 {[%emt 0:05:57]} 31. Ra5 {[%emt 0:02:47]}
Rxe2 {[%emt 0:02:35]} 32. Bf1 {[%emt 0:02:16]} Re4 {[%emt 0:00:57]} 33. a4 {
[%emt 0:04:18]} Be6 {[%emt 0:05:31]} 34. b4 {[%emt 0:03:19]} bxa4 {[%emt 0:01:
34]} 35. Rxa4 {[%emt 0:00:02]} Re1 {[%emt 0:02:53]} 36. Kf2 {[%emt 0:01:30]}
Rb1 {[%emt 0:01:18]} 37. Re3 {[%emt 0:00:25]} Rb6 {[%emt 0:01:24]} 38. Re5 {
[%emt 0:02:34]} c3 {[%emt 0:03:07]} 39. Rc5 {[%emt 0:03:32]} Rb2+ {[%emt 0:01:
22]} 40. Ke3 {[%emt 0:00:40]} R2xb4 {[%emt 0:02:19]} 41. Rc7+ {[%emt 0:00:16]}
Kf8 {[%emt 0:00:28]} 42. Ra8+ {[%emt 0:01:02]} Rb8 {[%emt 0:00:08]} 43. Rxb8+ {
[%emt 0:00:32]} Rxb8 {[%emt 0:00:04]} 44. Kd4 {[%emt 0:00:51]} Rc8 {[%emt 0:00:
57]} 45. Rxc8+ {[%emt 0:00:17]} Bxc8 {[%emt 0:00:04]} 46. Kxc3 {[%emt 0:00:06]}
Kg7 {[%emt 0:00:09]} 47. Kd4 {[%emt 0:00:02]} Bb7 {[%emt 0:00:12]} 48. Ke5 {
[%emt 0:00:06]} Bf3 {[%emt 0:00:17]} 49. h4 {[%emt 0:00:07]} Bd1 {[%emt 0:00:
08]} 50. Bd3 {[%emt 0:00:20]} 1/2-1/2